bitfinex/quotes_ETHUSD_20250319
["timestamp","ask_amount","ask_price","bid_price","bid_amount"]
[1742362195184,2.69981372,1940.7,1940.6,5.15304]
[1742362196282,2.69981372,1940.7,1940.5,5.15318]
[1742362196594,2.69981372,1940.6,1940.5,5.15312]
[1742362197480,2.69981372,1940.7,1940.5,5.15312]
[1742362198180,2.69981372,1940.7,1940.5,10.30624]
[1742362198477,2.69981372,1940.6,1940.5,5.15312]
[1742362198658,2.69981372,1940.7,1940.5,10.3063]
[1742362198850,2.69981372,1940.7,1940.5,10.30628]
[1742362199049,2.69981372,1940.7,1940.6,5.15304]
[1742362199249,2.69981372,1940.7,1940.6,5.97094]
[1742362201149,2.69981372,1940.7,1940.6,0.8179]
[1742362201381,8.12917665,1940.7,1940.3,5.15382]
[1742362201574,2.69981372,1940.4,1940.3,5.15382]
[1742362201974,0.06442327,1940.6,1940.3,5.15382]
[1742362201975,2.69981372,1940.5,1940.3,5.15382]
[1742362202158,2.69981372,1940.5,1940.3,10.30746]
[1742362202359,2.69981372,1940.7,1940.5,5.97121]
[1742362202748,2.69981372,1940.7,1940.6,5.15304]
[1742362203180,4.56406985,1940.8,1940.6,5.15304]
[1742362203383,6.01920684,1940.8,1940.6,5.15304]
[1742362204283,6.01920684,1940.8,1940.5,5.97113]
[1742362206291,4.49965144,1940.6,1940.5,0.8179]
[1742362206459,0.06441835,1940.6,1940.5,0.8179]
[1742362206758,4.56406981,1940.7,1940.5,0.8179]
[1742362206958,5.68124549,1940.7,1940.5,0.8179]
[1742362207486,5.68124549,1940.7,1940.5,5.97119]
[1742362207654,4.56406981,1940.7,1940.5,5.97119]
[1742362211691,4.49965144,1940.6,1940.4,5.15343]
[1742362211875,4.49965144,1940.6,1940.3,0.755]
[1742362212073,0.06441838,1940.5,1940.3,0.755]
[1742362212312,4.49965144,1940.6,1940.3,5.90863]
[1742362212471,4.49965144,1940.6,1940.4,10.30681]
[1742362212787,4.49965144,1940.6,1940.4,5.15337]
[1742362213172,4.49965144,1940.6,1940.5,5.15331]
[1742362213372,6.01920568,1940.8,1940.6,5.15292]
[1742362213569,0.06441725,1940.8,1940.6,5.15292]
[1742362213774,4.56406869,1940.8,1940.6,5.15292]
[1742362215996,4.56406869,1940.8,1940.5,5.90831]
[1742362215997,4.49965144,1940.8,1940.5,5.90831]
[1742362216206,4.49965144,1940.8,1940.6,5.15302]
[1742362217306,4.56406537,1940.8,1940.6,5.15302]
[1742362217667,5.50317191,1940.8,1940.7,0.11044772]
[1742362218098,5.50317191,1940.8,1940.5,5.90831]
[1742362218300,5.50317191,1940.8,1940.7,0.11044772]
[1742362218506,5.50317191,1940.8,1940.6,0.11068089]
[1742362218677,5.50317191,1940.8,1940.7,0.11044772]
[1742362219072,5.50317191,1940.8,1940.5,11.06145]
[1742362219268,4.49965144,1940.8,1940.7,0.11044772]
[1742362219777,4.49965144,1940.8,1940.6,5.15295]
[1742362220100,4.49965144,1940.8,1940.7,0.11044772]
[1742362220289,4.56406523,1940.8,1940.7,0.11044772]
[1742362220489,4.56406523,1940.8,1940.5,5.90824]
[1742362220689,4.56406523,1940.8,1940.7,0.11044772]
[1742362221021,6.01839775,1940.8,1940.7,0.11044772]
[1742362221177,6.01839775,1940.8,1940.5,5.90824]
[1742362221379,6.01839775,1940.8,1940.7,0.11044772]
[1742362221594,6.01839775,1940.8,1940.6,0.11068089]
[1742362221788,6.01839775,1940.8,1940.7,0.11044772]
[1742362222325,6.01839775,1940.8,1940.5,11.06138]
[1742362222478,6.01839775,1940.8,1940.7,0.11044772]
[1742362223101,6.01839775,1940.8,1940.5,11.06138]
[1742362223303,4.56406523,1940.8,1940.7,0.11044772]
[1742362223881,4.56406523,1940.8,1940.5,11.06138]
[1742362224206,4.56406523,1940.8,1940.6,0.11068089]
[1742362225207,2.6998488,1940.7,1940.6,0.11068089]
[1742362226116,2.6998488,1940.7,1940.6,5.26372089]
[1742362227588,2.6998488,1940.7,1940.6,0.11068089]
[1742362227794,2.97627505,1940.7,1940.6,0.11068089]
[1742362228107,9.50114505,1940.7,1940.6,0.11068089]
[1742362228335,5.15304,1940.6,1940.2,5.15409]
[1742362228505,2.6998488,1940.3,1940.1,5.95474]
[1742362228712,2.6998488,1940.3,1940.1,11.10892]
[1742362228909,2.6998488,1940.3,1940.1,5.15418]
[1742362229779,2.6998488,1940.2,1940.1,5.15418]
[1742362229978,2.6998488,1940.2,1940.0,5.95492]
[1742362230174,2.6998488,1940.1,1940.0,5.95492]
[1742362230595,2.76427899,1940.1,1939.9,10.30965]
[1742362230802,2.6998488,1940.1,1939.9,5.15475]
[1742362231192,4.56672486,1940.2,1939.9,5.15475]
[1742362231393,4.56672651,1940.1,1939.9,5.15475]
[1742362231796,4.50229042,1940.0,1939.8,5.15506]
[1742362232615,4.50229042,1939.9,1939.7,5.15543]
[1742362232777,4.50229042,1939.8,1939.6,5.15568]
[1742362233385,5.38883223,1939.9,1939.6,5.15568]
[1742362233581,6.44319145,1939.9,1939.6,5.15568]
[1742362234221,4.50229042,1939.8,1939.6,5.15568]
[1742362234886,4.50229042,1939.7,1939.6,5.15568]
[1742362235082,4.50229042,1939.8,1939.6,5.15568]
[1742362239787,4.50229042,1939.8,1939.6,10.31125]
[1742362240183,5.14660957,1939.8,1939.6,5.15557]
[1742362240721,6.44319145,1939.9,1939.7,5.15543]
[1742362240897,5.38883223,1939.9,1939.7,5.15543]
[1742362241083,4.50229042,1940.0,1939.8,5.15517]
[1742362241920,4.50229042,1940.0,1939.7,10.31073]
[1742362242120,4.50229042,1939.9,1939.7,10.31073]
[1742362242690,4.95896351,1939.9,1939.7,5.1553]
[1742362242918,4.50229042,1939.8,1939.7,5.1553]
[1742362245117,4.50229042,1939.8,1939.7,0.11335388]
[1742362245316,5.38863614,1939.8,1939.6,5.15563]
[1742362245523,4.50229042,1939.7,1939.6,5.15563]
[1742362246018,5.04115403,1939.7,1939.5,5.15576]
[1742362246208,4.50229042,1939.6,1939.5,5.15576]
[1742362246390,4.56674001,1939.6,1939.5,5.15576]
[1742362246591,4.50229042,1939.6,1939.5,5.15576]
[1742362247194,4.56674,1939.6,1939.5,5.15576]
[1742362247404,5.07730036,1939.6,1939.5,5.15576]
[1742362248191,5.07730036,1939.6,1939.4,5.15623]
[1742362248395,5.01285078,1939.6,1939.4,10.31234]
[1742362250731,5.01285078,1939.6,1939.5,5.15596]
[1742362251630,5.01285078,1939.6,1939.4,10.31216]
[1742362252038,5.01285078,1939.6,1939.5,5.15596]
[1742362253193,5.01285078,1939.6,1939.4,5.15605]
[1742362253398,5.0035755,1939.5,1939.4,5.15605]
[1742362257538,5.0035755,1939.5,1939.3,5.15648]
[1742362257719,4.50229042,1939.4,1939.3,10.31279]
[1742362257918,4.50229042,1939.4,1939.3,5.15631]
[1742362258517,4.50229042,1939.4,1939.2,5.15664]
[1742362258739,4.95251946,1939.3,1939.2,5.15664]
[1742362259037,5.0035755,1939.5,1939.4,5.15623]
[1742362259240,3.20453336,1939.5,1939.4,5.15623]
[1742362259943,3.20453336,1939.5,1939.4,5.26667017]
[1742362260344,0.06445388,1939.7,1939.5,5.15582]
[1742362260544,2.70324828,1939.6,1939.5,5.15582]
[1742362261242,4.50500712,1939.6,1939.5,5.15582]
[1742362267950,5.6467,1939.8,1939.5,10.31169]
[1742362268144,5.6467,1939.8,1939.6,5.15567]
[1742362268343,5.06967712,1939.7,1939.6,5.15567]
[1742362269822,5.06967712,1939.7,1939.5,5.15582]
[1742362270018,5.06967712,1939.7,1939.5,10.31159]
[1742362270234,5.06967712,1939.7,1939.6,5.1557]
[1742362271553,5.06967712,1939.7,1939.5,10.31169]
[1742362272381,0.50696771,1939.6,1939.5,10.31169]
[1742362272937,0.50696771,1939.6,1939.5,5.15578]
[1742362273137,5.07642562,1939.6,1939.4,5.15615]
[1742362273337,4.50500712,1939.5,1939.4,5.15615]
[1742362274337,5.01264968,1939.5,1939.4,5.15615]
[1742362274934,5.80954968,1939.5,1939.4,0.1065499]
[1742362275134,5.80954968,1939.5,1939.3,5.15649]
[1742362275340,4.50500712,1939.4,1939.3,5.15649]
[1742362281236,2.70347238,1939.4,1939.3,5.15649]
[1742362283142,1.32977,1939.7,1939.5,5.15585]
[1742362283376,2.70347238,1939.6,1939.5,5.15585]
[1742362283668,3.10679662,1939.6,1939.5,5.15585]
[1742362284058,3.26814238,1939.7,1939.6,5.1557]
[1742362284259,2.70347238,1939.7,1939.6,5.9355]
[1742362286845,2.70347238,1939.7,1939.6,5.1557]
[1742362290073,2.70347238,1939.7,1939.6,5.258113]
[1742362292066,2.70347238,1939.8,1939.7,5.15543]
[1742362292262,2.60347238,1939.8,1939.7,5.93523]
[1742362292466,4.816,1940.1,1939.9,5.15488]
[1742362292689,0.4816,1940.0,1939.9,5.15488]
[1742362292889,5.6209,1940.2,1940.0,0.10147952]
[1742362293091,5.6209,1940.2,1939.9,5.15488]
[1742362293092,5.6209,1940.2,1939.9,5.25659285]
[1742362293387,11.325,1940.2,1940.0,0.10147952]
[1742362293562,11.325,1940.2,1939.8,5.15516]
[1742362293563,2.70347238,1940.1,1939.8,5.15516]
[1742362293895,2.70347238,1939.9,1939.8,5.15516]
[1742362298864,2.70347238,1939.9,1939.8,0.7798]
[1742362299083,2.70347238,1939.9,1939.8,6.528493]
[1742362299374,7.85705238,1940.4,1939.8,6.528493]
[1742362299375,2.70347238,1940.1,1940.0,5.15459]
[1742362299583,2.70347238,1940.2,1940.1,5.15437]
[1742362299888,5.15306,1940.6,1940.4,5.15341]
[1742362299889,0.8039,1940.6,1940.4,5.15341]
[1742362300066,2.70347238,1940.5,1940.4,5.15341]
[1742362301891,2.70347238,1940.5,1940.3,10.3073]
[1742362302060,5.1528,1940.7,1940.3,5.15365]
[1742362302061,2.70347238,1940.4,1940.3,5.15365]
[1742362303194,4.50080698,1940.5,1940.4,5.15346]
[1742362304994,5.30470698,1940.5,1940.4,0.10032637]
[1742362305182,5.89960193,1940.5,1940.4,0.10032637]
[1742362305388,5.83517768,1940.5,1940.4,0.10032637]
[1742362307270,5.30470698,1940.5,1940.4,0.10032637]
[1742362307470,4.50080698,1940.5,1940.4,0.10032637]
[1742362307686,4.50080698,1940.5,1940.4,5.25389637]
[1742362309308,4.50080698,1940.5,1940.4,0.10032637]
[1742362309503,4.56522827,1940.5,1940.4,0.10032637]
[1742362312009,5.00588768,1940.7,1940.6,0.09967551]
[1742362312805,4.50080698,1940.7,1940.6,0.09967551]
[1742362312993,4.50080698,1940.7,1940.6,5.25271551]
[1742362316090,11.02777698,1940.7,1940.6,0.09967551]
[1742362316414,0.55,1940.6,1940.3,5.15384]
[1742362316598,4.50080698,1940.4,1940.3,5.15384]
[1742362318716,4.50080698,1940.5,1940.4,5.15342]
[1742362318914,5.32500698,1940.7,1940.6,5.15304]
[1742362319086,9.31480698,1940.8,1940.6,5.15304]
[1742362319415,10.36080801,1940.8,1940.7,5.15277]
[1742362319798,5.32500698,1940.9,1940.7,5.15277]
[1742362320005,4.50080698,1940.8,1940.7,5.25214495]
[1742362325923,4.50080698,1940.9,1940.8,5.15251]
[1742362326288,4.50080698,1940.9,1940.8,5.25144253]
[1742362329508,5.31971418,1940.9,1940.8,0.09893253]
[1742362329825,6.25119876,1940.9,1940.6,10.30583]
[1742362330020,0.7545,1940.9,1940.8,0.09893253]
[1742362330229,0.7545,1940.9,1940.7,5.25193567]
[1742362330391,0.7545,1940.9,1940.8,0.09893253]
[1742362332923,4.50080698,1940.7,1940.6,5.15304]
[1742362333126,4.56522126,1940.7,1940.6,5.15304]
[1742362333290,4.56522126,1940.7,1940.5,5.15323]
[1742362333493,4.50080698,1940.6,1940.5,5.15323]
[1742362334894,4.50080698,1940.6,1940.5,5.25281596]
[1742362335307,4.50080698,1940.6,1940.5,6.29345356]
[1742362335791,0.7545,1940.9,1940.7,5.1526]
[1742362336093,4.50080698,1940.8,1940.7,5.1526]
[1742362337094,1.41298365,1941.1,1940.6,5.95142]
[1742362337095,0.7545,1941.1,1940.9,5.15209]
[1742362337297,1.147373,1941.5,1941.2,5.15145]
[1742362337496,4.50080698,1941.3,1941.1,5.15169]
[1742362337726,4.50080698,1941.2,1941.1,10.30329]
[1742362338726,4.50080698,1941.4,1941.0,5.15198]
[1742362338921,4.56519826,1941.4,1941.2,5.1512]
[1742362339120,4.50080698,1941.3,1941.2,10.30249]
[1742362339626,4.50080698,1941.3,1941.2,5.1512]
[1742362340531,4.50080698,1941.3,1941.1,5.15171]
[1742362340829,4.50080698,1941.2,1941.1,5.15171]
[1742362340993,4.50080698,1941.3,1941.2,5.15136]
[1742362341718,4.50080698,1941.4,1941.2,5.15136]
[1742362341927,4.50080698,1941.3,1941.2,5.15136]
[1742362342624,4.50080698,1941.3,1941.1,1.030368]
[1742362342824,4.50080698,1941.2,1941.0,5.15184]
[1742362343024,4.50080698,1941.4,1941.2,5.15121]
[1742362343433,4.50080698,1941.4,1941.3,5.15118]
[1742362344100,4.50080698,1941.4,1941.2,5.15121]
[1742362344296,0.7996,1941.7,1941.2,0.7627]
[1742362344502,4.50080698,1941.7,1941.5,5.15045]
[1742362345003,4.56518958,1941.7,1941.5,5.15045]
[1742362345221,4.50080698,1941.7,1941.5,10.30087]
[1742362345536,4.50080698,1941.7,1941.6,5.15039]
[1742362346209,4.50080698,1941.7,1941.5,10.30094]
[1742362346421,4.50080698,1941.7,1941.6,5.15039]
[1742362351136,4.50080698,1941.8,1941.6,10.3004]
[1742362351338,4.50080698,1941.8,1941.7,5.24627842]
[1742362351917,0.01,1941.9,1941.8,5.14986]
[1742362352130,0.01,1941.9,1941.8,5.91256]
[1742362352307,0.01,1941.9,1941.8,6.00837927]
[1742362352645,0.01,1941.9,1941.8,6.3615292]
[1742362358125,0.01,1941.9,1941.8,7.1242292]
[1742362362657,4.51080698,1941.9,1941.8,7.1242292]
[1742362362830,0.01,1941.9,1941.8,7.1242292]
[1742362364252,0.01,1941.9,1941.8,6.3615292]
[1742362369267,0.01,1941.9,1941.8,7.1590292]
[1742362380050,0.01,1941.9,1941.8,6.3615292]
[1742362386008,0.01,1941.9,1941.8,7.1627292]
[1742362386151,0.01,1941.9,1941.8,10.1627292]
[1742362389766,0.01,1941.9,1941.8,14.66353618]
[1742362392803,0.01,1941.9,1941.8,11.66353618]
[1742362393374,0.01,1941.9,1941.8,14.66353618]
[1742362396410,0.01,1941.9,1941.8,11.66353618]
[1742362396777,0.01,1941.9,1941.8,14.66353618]
[1742362398611,0.01,1941.9,1941.8,32.46853618]
[1742362399483,0.01,1941.9,1941.8,32.85918012]
[1742362401006,5.14800698,1942.5,1942.4,5.14827]
[1742362401402,5.14800698,1942.5,1942.4,5.2419684]
[1742362403095,3.34167718,1942.5,1942.4,5.2419684]
[1742362404995,0.7777,1942.9,1942.4,0.83327223]
[1742362405297,0.7777,1942.9,1942.8,5.14721]
[1742362405502,2.69447718,1943.0,1942.9,5.14694]
[1742362405820,0.7777,1943.1,1943.0,5.14668]
[1742362406029,3.47217718,1943.1,1943.0,5.23888681]
[1742362406199,0.7777,1943.1,1943.0,5.23888681]
[1742362406405,3.47217718,1943.1,1943.0,5.23888681]
[1742362407103,5.26594538,1943.1,1943.0,5.23888681]
[1742362415737,5.80408175,1943.1,1943.0,0.09220681]
[1742362415897,5.80408175,1943.1,1942.9,5.1469]
[1742362416103,5.26594538,1943.0,1942.9,5.1469]
[1742362416334,5.26594538,1943.0,1942.8,5.14709]
[1742362416527,4.48824538,1942.9,1942.8,5.14709]
[1742362416726,5.26594538,1943.0,1942.9,5.14694]
[1742362417645,4.48824538,1943.0,1942.9,5.14694]
[1742362423912,5.01483992,1943.0,1942.9,5.14694]
[1742362424923,5.01483992,1943.0,1942.9,5.23898995]
[1742362426514,4.48824538,1943.0,1942.9,5.23898995]
[1742362429737,4.48824538,1943.0,1942.9,0.09204995]
[1742362431141,5.29254538,1943.0,1942.9,0.09204995]
[1742362431321,5.29254538,1943.0,1942.7,5.14747]
[1742362431647,4.48824538,1942.8,1942.7,5.14747]
[1742362431850,0.8043,1942.7,1942.5,5.14775]
[1742362432019,4.48824538,1942.6,1942.5,10.29556]
[1742362432748,4.48824538,1942.6,1942.5,5.14775]
[1742362435319,4.48824538,1942.6,1942.3,5.14827]
[1742362435524,4.48824538,1942.4,1942.3,5.14827]
[1742362438156,0.53568924,1942.6,1942.3,5.14827]
[1742362438157,4.48824538,1942.6,1942.4,0.7796]
[1742362438341,4.48824538,1942.7,1942.6,5.14747]
[1742362439734,0.8218,1942.9,1942.6,10.29501]
[1742362439936,4.48824538,1942.7,1942.6,5.14747]
[1742362440759,4.93706992,1942.7,1942.5,10.29589]
[1742362440959,5.31004538,1942.6,1942.5,5.1479]
[1742362444230,5.31004538,1942.6,1942.4,5.14806]
[1742362444434,5.31004538,1942.6,1942.4,10.29621]
[1742362444630,5.31004538,1942.6,1942.4,5.14806]
[1742362444835,5.89236705,1942.6,1942.4,5.14806]
[1742362445837,5.89236705,1942.6,1942.3,5.14833]
[1742362446136,4.48824538,1942.4,1942.3,5.14833]
[1742362447639,5.31004538,1942.4,1942.3,5.14833]
[1742362448566,5.31004538,1942.4,1942.2,5.14873]
[1742362449140,4.48824538,1942.3,1942.2,5.14873]
[1742362453471,5.01924992,1942.3,1942.2,5.14873]
[1742362453641,5.01924992,1942.3,1942.1,5.14905]
[1742362453840,4.48824538,1942.2,1942.1,5.14905]
[1742362454944,4.48824538,1942.2,1942.1,5.21648775]
[1742362455145,4.48824538,1942.3,1942.2,5.14863]
[1742362455471,0.7619,1942.6,1942.5,5.148]
[1742362455691,4.48824538,1942.6,1942.5,5.148]
[1742362455846,4.48824538,1942.6,1942.5,5.21453143]
[1742362456875,5.25014538,1942.6,1942.5,0.06653143]
[1742362457242,5.25014538,1942.6,1942.3,5.14848]
[1742362457479,4.48824538,1942.4,1942.3,5.14848]
[1742362462967,4.48824538,1942.4,1942.3,5.94028]
[1742362463988,4.48824538,1942.6,1942.5,5.148]
[1742362465459,4.48824538,1942.7,1942.6,5.14774]
[1742362465659,4.48824538,1942.8,1942.7,5.14747]
[1742362469986,4.48824538,1942.8,1942.7,5.21345116]
[1742362475293,5.38868484,1942.8,1942.7,5.21345116]
[1742362481913,2.69434242,1942.8,1942.7,5.21345116]
[1742362484928,2.69434242,1943.1,1943.0,5.14647]
[1742362485409,2.69434242,1943.1,1943.0,5.21133381]
[1742362485980,2.69434242,1943.1,1943.0,5.99463381]
[1742362487109,4.60362094,1943.2,1943.1,5.14641]
[1742362487610,4.60362094,1943.2,1943.1,5.21096696]
[1742362490257,4.60362094,1943.2,1943.1,0.06455696]
[1742362490440,5.8594157,1943.2,1943.1,0.06455696]
[1742362490606,10.89761834,1943.2,1943.1,0.06455696]
[1742362490806,15.70361834,1943.2,1942.9,5.1469]
[1742362491152,4.48820264,1943.0,1942.9,5.1469]
[1742362495750,5.7104183,1943.2,1943.1,5.14641]
[1742362495908,10.19862094,1943.2,1943.1,5.14641]
[1742362496217,10.19862094,1943.2,1943.1,5.661051]
[1742362496218,0.1154183,1943.2,1943.1,5.661051]
[1742362496416,4.60362094,1943.2,1943.1,5.661051]
[1742362498352,4.60362094,1943.2,1943.1,5.14641]
[1742362499823,4.60362094,1943.2,1943.1,5.21088207]
[1742362502133,5.36612094,1943.2,1943.1,0.06447207]
[1742362503556,5.36612094,1943.2,1943.1,5.21088207]
[1742362503934,0.1154183,1943.2,1943.1,5.21088207]
[1742362504234,4.60362094,1943.2,1943.1,5.21088207]
[1742362505539,5.83291581,1943.2,1943.1,0.06447207]
[1742362505874,6.38291581,1943.2,1943.1,0.06447207]
[1742362506077,0.55,1943.1,1942.9,5.14693]
[1742362506277,4.48820264,1943.0,1942.9,5.14693]
[1742362506457,4.48820264,1943.0,1942.8,5.14701]
[1742362506775,5.25070264,1942.9,1942.8,5.14701]
[1742362511267,9.41262094,1943.2,1943.0,5.14665]
[1742362512982,4.48820264,1943.1,1943.0,5.14665]
[1742362513582,4.48820264,1943.1,1942.9,5.14694]
[1742362513766,4.48820264,1943.0,1942.9,5.14694]
[1742362514866,4.48820264,1943.0,1942.9,5.20965267]
[1742362519296,5.7652229,1943.0,1942.9,0.06271267]
[1742362520095,5.7652229,1943.0,1942.7,5.14744]
[1742362520294,4.48820264,1942.8,1942.7,5.14744]
[1742362527095,4.48820264,1942.9,1942.7,5.14744]
[1742362527299,4.48820264,1942.8,1942.7,5.14733]
[1742362529906,4.48820264,1942.8,1942.7,5.2107441]
[1742362539924,5.7520183,1943.2,1943.0,5.14648]
[1742362540224,4.48820264,1943.1,1943.0,5.14648]
[1742362540522,4.48820264,1943.1,1943.0,5.14646]
[1742362541425,0.1154183,1943.2,1943.1,5.14641]
[1742362541626,4.60362094,1943.2,1943.1,5.14641]
[1742362541823,4.60362094,1943.2,1943.0,5.14646]
[1742362542040,4.48820264,1943.1,1942.9,5.14689]
[1742362542328,1.40638039,1943.2,1942.9,5.14689]
[1742362542329,4.48820264,1943.0,1942.9,5.14689]
[1742362545109,4.48820264,1943.0,1942.9,5.20971494]
[1742362546122,4.48820264,1943.0,1942.9,0.06282494]
[1742362546318,5.7676229,1943.0,1942.9,0.06282494]
[1742362546905,6.3176229,1943.0,1942.7,5.14747]
[1742362547105,4.48820264,1942.8,1942.7,5.14747]
[1742362547537,5.31880264,1942.8,1942.7,5.14747]
[1742362547741,5.31880264,1942.8,1942.6,5.14769]
[1742362547929,4.48820264,1942.7,1942.6,5.14769]
[1742362552140,4.48820264,1942.8,1942.7,5.14731]
[1742362554548,4.48820264,1942.9,1942.8,5.14708]
[1742362556721,5.06496493,1942.9,1942.7,5.14731]
[1742362556921,4.48820264,1942.8,1942.7,5.14731]
[1742362557328,0.7785,1942.7,1942.4,5.14826]
[1742362557530,4.48820264,1942.6,1942.3,5.14853]
[1742362557839,4.48820264,1942.4,1942.3,5.14842]
[1742362558910,4.48820264,1942.4,1942.2,5.14867]
[1742362559112,4.48820264,1942.3,1942.2,5.14863]
[1742362559312,4.48820264,1942.3,1942.1,5.14895]
[1742362559545,4.48820264,1942.2,1942.1,5.14895]
[1742362560045,4.48820264,1942.2,1942.1,5.21368253]
[1742362560815,4.48820264,1942.2,1942.1,0.06473253]
[1742362561014,4.9370229,1942.2,1942.1,0.06473253]
[1742362565716,4.9370229,1942.2,1941.9,10.29895]
[1742362565922,4.48820264,1942.0,1941.9,5.14947]
[1742362567762,4.9370229,1942.2,1942.0,5.1493]
[1742362568056,4.48820264,1942.1,1942.0,5.1493]
[1742362568956,4.48820264,1942.1,1941.9,5.92417]
[1742362569565,4.48820264,1942.0,1941.9,5.92417]
[1742362571059,4.48820264,1942.0,1941.8,5.14984]
[1742362571263,4.48820264,1941.9,1941.8,5.14984]
[1742362572339,4.48820264,1942.0,1941.8,13.29959]
[1742362572524,4.48820264,1942.0,1941.8,8.14975]
[1742362572725,4.48820264,1942.1,1942.0,3.0]
[1742362573465,4.48820264,1942.1,1942.0,8.14933]
[1742362574064,4.48820264,1942.1,1942.0,3.0]
[1742362574961,4.48820264,1942.1,1942.0,3.06519457]
[1742362579342,4.48820264,1942.1,1942.0,0.06519457]
[1742362581472,4.48820264,1941.9,1941.8,3.0]
[1742362582158,4.48820264,1942.0,1941.8,8.91016]
[1742362585474,4.48820264,1942.0,1941.8,3.0]
[1742362585653,5.49745459,1942.0,1941.8,3.0]
[1742362589773,5.49745459,1942.0,1941.8,8.14975]
[1742362589975,4.48820264,1942.0,1941.9,0.06578714]
[1742362590173,4.48820264,1942.0,1941.8,8.14975]
[1742362590374,4.48820264,1942.0,1941.9,0.06578714]
[1742362590572,4.48820264,1942.0,1941.8,8.14965]
[1742362590751,4.48820264,1942.0,1941.9,0.06578714]
[1742362590941,4.48820264,1942.0,1941.9,5.14959]
[1742362591142,4.48820264,1942.0,1941.9,5.215423]
[1742362593375,4.48820264,1942.0,1941.9,0.065833]
[1742362593580,4.9370229,1942.0,1941.8,8.14983]
[1742362593782,4.9370229,1942.0,1941.9,0.065833]
[1742362593983,5.7051229,1942.0,1941.8,3.0]
[1742362594187,5.7051229,1942.0,1941.9,0.065833]
[1742362594374,5.76949541,1942.0,1941.8,3.0]
[1742362594575,0.57694954,1941.9,1941.8,3.0]
[1742362595190,5.76949541,1942.0,1941.8,3.0]
[1742362596186,4.48820264,1941.9,1941.8,3.0]
[1742362600888,4.48820264,1941.9,1941.8,3.0]
[1742362603679,4.48820264,1941.9,1941.8,8.14986]
[1742362604459,4.48820264,1941.9,1941.8,3.0]
[1742362605089,4.48820264,1941.9,1941.8,3.06610467]
[1742362607092,6.95431026,1941.9,1941.8,3.06610467]
[1742362607259,9.65171604,1941.9,1941.8,3.06610467]
[1742362607455,8.84581604,1941.9,1941.8,0.06610467]
[1742362607677,14.46071604,1941.9,1941.8,0.06610467]
[1742362607883,5.95615,1941.7,1941.4,3.0]
[1742362608086,2.69740578,1941.5,1941.3,5.15105]
[1742362608264,2.69740578,1941.4,1941.3,8.15105]
[1742362609163,4.49647116,1941.4,1941.3,8.15105]
[1742362610779,4.49647116,1941.5,1941.4,5.15092]
[1742362612957,4.49647116,1941.5,1941.3,8.15112]
[1742362613160,4.49647116,1941.4,1941.3,8.15112]
[1742362613782,4.49647116,1941.4,1941.3,8.21853412]
[1742362617593,4.49647116,1941.4,1941.3,0.06741412]
[1742362617594,4.94611828,1941.4,1941.3,0.06741412]
[1742362617830,5.01050574,1941.4,1941.3,0.06741412]
[1742362617995,4.94611828,1941.4,1941.2,5.15138]
[1742362618196,4.94611828,1941.4,1941.3,5.21644706]
[1742362618900,4.94611828,1941.4,1941.3,0.06526706]
[1742362619197,4.94611828,1941.4,1941.1,5.1516]
[1742362619497,4.49647116,1941.2,1941.1,5.1516]
[1742362620274,4.49647116,1941.2,1940.9,5.15213]
[1742362620477,4.49647116,1941.1,1941.0,5.15185]
[1742362620701,4.49647116,1941.1,1941.0,8.15185]
[1742362620897,4.49647116,1941.2,1941.0,13.30362]
[1742362621201,4.49647116,1941.3,1941.1,10.30326]
[1742362621403,4.49647116,1941.3,1941.2,5.15145]
[1742362622099,4.809,1941.5,1941.1,0.7954]
[1742362622274,4.49647116,1941.5,1941.3,5.15101]
[1742362622468,4.49647116,1941.4,1941.3,10.30204]
[1742362622671,4.49647116,1941.4,1941.3,5.15101]
[1742362622869,4.49647116,1941.4,1941.2,8.1514]
[1742362623103,4.49647116,1941.3,1941.2,8.1514]
[1742362624500,4.94611828,1941.3,1941.2,3.0]
[1742362624903,4.94611828,1941.3,1941.2,8.15145]
[1742362625203,4.94611828,1941.3,1941.2,3.0]
[1742362626671,5.71791828,1941.3,1941.2,3.0]
[1742362627200,10.93358159,1941.3,1940.8,1.03614258]
[1742362627395,0.7718,1941.1,1940.9,3.0]
[1742362627995,4.49647116,1941.0,1940.8,5.15239]
[1742362628184,4.49647116,1940.9,1940.8,8.15239]
[1742362628389,4.49647116,1941.0,1940.9,3.0]
[1742362628602,5.02329828,1941.0,1940.9,3.0]
[1742362629374,5.02329828,1941.0,1940.8,3.0]
[1742362629576,4.49647116,1940.9,1940.8,3.0]
[1742362630988,4.56087864,1940.9,1940.8,3.0]
[1742362632083,4.49647116,1940.9,1940.8,3.06426753]
[1742362632291,5.51400999,1940.9,1940.8,3.06426753]
[1742362632607,5.57841821,1940.9,1940.8,3.06426753]
[1742362635190,5.57841821,1940.9,1940.8,0.06426753]
[1742362635518,5.02329828,1941.0,1940.8,0.06426753]
[1742362635891,5.02329828,1941.0,1940.8,5.21667753]
[1742362636077,4.49647116,1940.9,1940.8,5.21667753]
[1742362640919,4.49647116,1941.1,1940.9,5.15214]
[1742362641083,4.49647116,1941.0,1940.9,5.15214]
[1742362642197,4.49647116,1941.1,1940.9,10.30419]
[1742362642399,6.30555681,1941.5,1941.0,5.15198]
[1742362642599,4.49647116,1941.3,1941.1,5.1516]
[1742362642800,4.49647116,1941.2,1941.1,5.1516]
[1742362645323,11.18739712,1941.5,1941.1,5.1516]
[1742362645696,4.49647116,1941.3,1941.1,5.1516]
[1742362645915,4.49647116,1941.2,1940.9,5.95458]
[1742362646116,4.49647116,1941.2,1940.9,5.15198]
[1742362646117,4.49647116,1941.0,1940.9,5.15198]
[1742362647105,4.49647116,1941.0,1940.9,5.21609859]
[1742362648396,4.49647116,1941.1,1940.9,5.21609859]
[1742362650915,5.02504828,1941.2,1941.1,0.06365243]
[1742362651111,5.02504828,1941.2,1940.9,5.15206]
[1742362651434,5.02504828,1941.2,1941.0,0.06396265]
[1742362651596,5.02504828,1941.2,1941.0,5.21591265]
[1742362652130,5.02504828,1941.2,1941.0,0.06396265]
[1742362652327,0.50250483,1941.1,1941.0,0.06396265]
[1742362652717,0.50250483,1941.1,1940.9,5.15215]
[1742362653032,6.48391483,1941.1,1941.0,0.06396265]
[1742362653234,6.48391483,1941.1,1940.7,8.15277]
[1742362653412,4.49647116,1940.9,1940.8,0.06443939]